bitfinex-derivatives/quotes_SOLF0:USTF0_20241029
["timestamp","ask_amount","ask_price","bid_price","bid_amount"]
[1730229724378,9.255779,179.22,179.09,67.98]
[1730229724580,34.80777015,179.2,179.09,7.66]
[1730229724777,34.80777015,179.17,179.04,34.80777015]
[1730229725299,2.7913,179.12,179.08,2.7918]
[1730229725478,7.66,179.19,179.07,34.80777015]
[1730229725685,7.66,179.19,179.08,7.66]
[1730229725993,7.66,179.19,179.08,10.4518]
[1730229726291,34.80777015,179.17,179.08,7.66]
[1730229726884,2.7917,179.09,179.08,7.66]
[1730229727081,2.7917,179.09,179.04,2.7925]
[1730229727280,34.80777015,179.05,178.86,7.66]
[1730229727595,34.80777015,179.02,178.89,1.567]
[1730229727783,34.80777015,179.05,178.91,34.80777015]
[1730229728084,2.7924,179.05,178.98,2.7934]
[1730229728284,2.9024,179.08,178.99,7.66]
[1730229728783,2.793,179.01,178.99,7.66]
[1730229729084,34.80777015,179.03,178.94,7.66]
[1730229729489,34.80777015,179.0,178.94,7.66]
[1730229729679,34.80777015,179.0,178.89,1.567]
[1730229729680,34.80777015,179.0,178.9,7.66]
[1730229730086,34.80777015,179.0,178.85,1.5629]
[1730229730291,34.80777015,179.0,178.86,7.66]
[1730229730487,34.80777015,178.97,178.86,7.66]
[1730229730678,34.80777015,178.94,178.87,2.7951]
[1730229730881,34.80777015,178.89,178.57,8.0]
[1730229731084,34.80777015,178.88,178.73,34.80777015]
[1730229731281,34.80777015,178.9,178.75,34.80777015]
[1730229731483,34.80777015,178.93,178.79,34.80777015]
[1730229731680,34.80777015,178.93,178.8,8.0]
[1730229731886,1.4824,178.96,178.8,8.0]
[1730229731887,36.29017015,178.96,178.8,8.0]
[1730229732083,36.29017015,178.96,178.79,34.80777015]
[1730229732284,36.29017015,178.96,178.81,34.80777015]
[1730229732484,1.4824,178.96,178.81,34.80777015]
[1730229732686,296.83214542,179.03,178.88,34.80777015]
[1730229732986,34.80777015,178.96,178.82,34.80777015]
[1730229733185,34.80777015,178.9,178.78,8.36]
[1730229733378,34.80777015,178.89,178.78,8.36]
[1730229733580,34.80777015,178.92,178.78,8.36]
[1730229733790,34.80777015,178.92,178.77,34.80777015]
[1730229733988,1.4921,178.91,178.72,8.36]
[1730229734292,1.5824,178.9,178.8,34.80777015]
[1730229734985,1.5824,178.9,178.8,43.16777015]
[1730229735383,1.5824,178.9,178.47,4.92455284]
[1730229735384,34.80777015,178.87,178.54,65.9406]
[1730229735584,34.80777015,178.87,178.74,34.80777015]
[1730229735790,36.39017015,178.9,178.74,34.80777015]
[1730229735986,1.5824,178.9,178.68,8.36]
[1730229736181,1.5824,178.9,178.79,34.80777015]
[1730229736585,1.5824,178.9,178.71,8.36]
[1730229736885,1.5824,178.9,178.75,34.80777015]
[1730229737279,36.39017015,178.9,178.73,34.80777015]
[1730229737476,1.5824,178.9,178.64,2.7986]
[1730229737682,34.80777015,178.89,178.61,34.80777015]
[1730229737882,34.80777015,178.85,178.62,1.02809682]
[1730229738083,8.36,178.84,178.73,2.7973]
[1730229738290,8.36,178.84,178.72,34.80777015]
[1730229738589,9.9424,178.9,178.81,2.796]
[1730229738788,34.80777015,178.88,178.72,34.80777015]
[1730229738989,9.9424,178.9,178.72,34.80777015]
[1730229739183,9.9424,178.9,178.78,2.7965]
[1730229739385,34.80777015,178.85,178.71,8.36]
[1730229739793,34.80777015,178.85,178.77,2.7967]
[1730229739987,34.80777015,178.89,178.72,34.80777015]
[1730229740387,34.80777015,178.89,178.8,2.7961]
[1730229740588,34.80777015,178.89,178.72,34.80777015]
[1730229740783,34.80777015,178.85,178.72,34.80777015]
[1730229740989,34.80777015,178.85,178.76,2.7968]
[1730229741184,34.80777015,178.85,178.71,8.36]
[1730229741386,8.36,178.84,178.72,34.80777015]
[1730229741587,34.80777015,178.82,178.31,16.71]
[1730229741794,34.80777015,178.85,178.7,34.80777015]
[1730229741996,34.80777015,178.88,178.73,34.80777015]
[1730229742486,37.60277015,178.88,178.82,2.7959]
[1730229742684,34.80777015,178.88,178.77,8.72]
[1730229742897,34.80777015,178.88,178.7,34.80777015]
[1730229743093,34.80777015,178.85,178.7,43.52777015]
[1730229743301,1.5824,178.9,178.73,34.80777015]
[1730229743493,34.80777015,178.84,178.75,2.7968]
[1730229743690,34.80777015,178.84,178.7,43.52777015]
[1730229743991,2.7961,178.8,178.74,2.7969]
[1730229744283,34.80777015,178.79,178.7,8.72]
[1730229744593,34.80777015,178.76,178.65,60.4]
[1730229744896,2.9955,178.78,178.65,60.4]
[1730229745192,36.25757015,178.79,178.66,34.80777015]
[1730229745193,1.4498,178.79,178.66,34.80777015]
[1730229745393,1.5211,178.84,178.69,34.80777015]
[1730229745997,1.5211,178.84,178.7,1.4557]
[1730229746197,1.5211,178.84,178.71,8.72]
[1730229746696,34.80777015,178.82,178.78,2.7963]
[1730229747196,34.80777015,178.82,178.71,8.72]
[1730229747996,37.83557015,178.88,178.72,34.80777015]
[1730229748594,37.83557015,178.88,178.73,1.5507]
[1730229748789,34.80777015,178.85,178.73,1.5507]
[1730229749092,34.80777015,178.85,178.7,1.4557]
[1730229749093,34.80777015,178.82,178.74,2.7969]
[1730229749298,34.80777015,178.82,178.7,10.1757]
[1730229749692,34.80777015,178.85,178.71,34.80777015]
[1730229750197,34.80777015,178.85,178.84,2.7955]
[1730229750492,37.83557015,178.88,178.84,2.7955]
[1730229750700,37.83557015,178.88,178.85,2.7953]
[1730229750899,37.83557015,178.88,178.78,8.72]
[1730229751096,34.80777015,178.88,178.78,8.72]
[1730229751293,34.80777015,178.91,178.78,8.72]
[1730229751494,36.28487015,178.97,178.82,34.80777015]
[1730229751697,34.80777015,179.0,178.88,34.80777015]
[1730229752007,196.0016,179.15,178.89,8.72]
[1730229752008,34.80777015,179.03,178.89,8.72]
[1730229752187,34.80777015,179.09,179.05,2.7922]
[1730229752392,34.80777015,179.09,179.0,8.72]
[1730229752599,34.80777015,179.09,178.99,8.72]
[1730229752797,34.80777015,179.09,179.0,8.72]
[1730229753209,34.80777015,179.09,179.03,2.7925]
[1730229753210,2.7919,179.08,179.03,2.7925]
[1730229753495,2.7919,179.08,179.0,8.72]
[1730229754402,2.7919,179.08,179.02,2.7925]
[1730229754604,37.59987015,179.06,178.99,8.7]
[1730229754804,34.80777015,179.06,179.01,2.7928]
[1730229755109,34.80777015,179.06,178.99,8.7]
[1730229755110,36.28487015,179.12,178.99,8.7]
[1730229755302,36.28487015,179.12,179.07,2.7918]
[1730229755797,37.59837015,179.15,179.06,8.7]
[1730229756103,34.80777015,179.15,179.06,8.7]
[1730229756496,34.80777015,179.15,179.11,2.7911]
[1730229756803,34.80777015,179.15,179.07,8.7]
[1730229756995,34.80777015,179.18,179.07,8.7]
[1730229757393,1.5094,179.19,179.07,8.7]
[1730229757891,34.80777015,179.15,179.07,8.7]
[1730229758089,34.80777015,179.15,179.09,2.7916]
[1730229758291,34.80777015,179.15,179.07,8.7]
[1730229758498,34.80777015,179.18,179.07,8.7]
[1730229758706,34.80777015,179.15,179.07,8.7]
[1730229759497,34.80777015,179.09,179.02,69.08]
[1730229759709,34.80777015,179.12,179.02,69.08]
[1730229759902,34.80777015,179.15,179.09,2.7916]
[1730229760094,34.80777015,179.15,179.02,69.08]
[1730229760893,34.80777015,179.15,179.1,2.7915]
[1730229761700,43.50777015,179.18,179.11,2.7913]
[1730229761897,34.80777015,179.21,179.05,34.80777015]
[1730229762102,37.59817015,179.18,179.06,10.2525]
[1730229762301,34.80777015,179.18,179.06,10.2525]
[1730229762509,34.80777015,179.18,179.1,2.7915]
[1730229762906,34.80777015,179.18,179.06,10.2525]
[1730229763502,34.80777015,179.18,179.11,2.7913]
[1730229763901,34.80777015,179.18,179.06,10.2525]
[1730229764103,34.80777015,179.18,179.12,2.7912]
[1730229764811,34.80777015,179.21,179.06,10.2525]
[1730229765211,2.79,179.2,179.06,10.2525]
[1730229765407,34.80777015,179.21,179.13,2.791]
[1730229765804,34.80777015,179.21,179.1,2.7915]
[1730229766009,34.80777015,179.21,179.09,34.80777015]
[1730229766204,1.5313,179.26,179.09,34.80777015]
[1730229766205,34.80777015,179.24,179.09,34.80777015]
[1730229767008,2.7897,179.23,179.11,34.80777015]
[1730229767316,1.5313,179.26,179.11,34.80777015]
[1730229767507,2.7893,179.25,179.19,2.79]
[1730229767811,1.5313,179.26,179.18,8.7]
[1730229768213,4.3204,179.26,179.2,2.79]
[1730229768507,1.5313,179.26,179.18,8.7]
[1730229768913,2.7894,179.24,179.18,11.4902]
[1730229769318,1.5313,179.26,179.17,8.7]
[1730229769514,4.3204,179.26,179.17,8.7]
[1730229770212,34.80777015,179.3,179.17,43.50777015]
[1730229770412,2.7888,179.28,179.17,43.50777015]
[1730229770817,2.7888,179.28,179.22,2.7896]
[1730229771012,2.7886,179.29,179.17,43.50777015]
[1730229771211,2.7886,179.29,179.18,1.6046]
[1730229771415,34.80777015,179.3,179.18,1.6046]
[1730229771614,36.38307015,179.33,179.18,1.6046]
[1730229771920,34.80777015,179.36,179.2,34.80777015]
[1730229772217,2.7878,179.35,179.23,34.80777015]
[1730229772425,2.7878,179.35,179.29,2.7885]
[1730229772617,37.89697015,179.39,179.24,10.0451]
[1730229772820,2.7881,179.33,179.24,10.0451]
[1730229773022,2.7881,179.33,179.26,2.7889]
[1730229773327,2.7878,179.35,179.24,10.0451]
[1730229773517,37.89697015,179.39,179.3,2.7883]
[1730229773715,2.7874,179.37,179.31,8.42]
[1730229773920,2.7874,179.37,179.32,8.42]
[1730229774129,2.7874,179.37,179.32,11.208]
[1730229774420,2.7872,179.38,179.32,11.208]
[1730229774625,34.80777015,179.42,179.32,8.42]
[1730229775026,2.7871,179.39,179.32,8.42]
[1730229775323,34.80777015,179.42,179.35,2.7875]
[1730229775619,34.80777015,179.42,179.32,8.42]
[1730229775620,37.89697015,179.44,179.32,8.42]
[1730229776219,36.39757015,179.44,179.32,8.42]
[1730229777225,34.80777015,179.41,179.33,8.42]
[1730229777425,36.39757015,179.44,179.33,8.42]
[1730229777623,2.7865,179.43,179.33,8.42]
[1730229778030,1.5898,179.44,179.39,2.787]
[1730229778224,1.5898,179.44,179.33,8.42]
[1730229778425,36.39757015,179.44,179.33,8.42]
[1730229778622,34.80777015,179.47,179.34,34.80777015]
[1730229778818,2.7861,179.46,179.4,2.7868]
[1730229779022,3.0778,179.49,179.4,11.1868]
[1730229779419,2.786,179.46,179.41,2.7867]
[1730229779620,3.0778,179.49,179.4,8.4]
[1730229779825,3.0778,179.49,179.41,8.4]
[1730229780020,2.7859,179.47,179.41,8.4]
[1730229780231,3.0778,179.49,179.41,8.4]
[1730229780718,2.786,179.46,179.41,8.4]
[1730229780922,3.0778,179.49,179.41,8.4]
[1730229781124,1.4969,179.49,179.41,8.4]
[1730229782028,36.30467015,179.49,179.35,1.5444]
[1730229782231,36.30467015,179.49,179.4,8.4]
[1730229782627,36.34907015,179.55,179.4,43.20777015]
[1730229782821,36.34907015,179.55,179.43,34.80777015]
[1730229783531,1.5413,179.55,179.43,34.80777015]
[1730229783734,3.0092,179.57,179.45,34.80777015]
[1730229784124,3.0092,179.57,179.42,95.06777015]
[1730229784632,2.7848,179.54,179.45,34.80777015]
[1730229784828,2.7848,179.54,179.46,1.5546]
[1730229785029,2.7844,179.57,179.53,2.7849]
[1730229785230,2.7844,179.57,179.48,34.80777015]
[1730229785430,36.34367015,179.61,179.48,34.80777015]
[1730229785629,34.80777015,179.58,179.47,10.0558]
[1730229785829,1.5359,179.61,179.47,10.0558]
[1730229785830,36.34367015,179.61,179.47,10.0558]
[1730229786035,2.7849,179.53,179.49,2.7854]
[1730229786236,36.34367015,179.61,179.47,10.0558]
[1730229786727,36.34367015,179.61,179.51,2.7851]
[1730229787325,2.7845,179.56,179.48,8.4]
[1730229787534,34.80777015,179.58,179.49,8.4]
[1730229787732,2.7843,179.57,179.51,2.7852]
[1730229787933,34.80777015,179.6,179.49,8.4]
[1730229788337,2.7845,179.56,179.49,8.4]
[1730229788543,34.80777015,179.6,179.49,8.4]
[1730229789233,51.46777015,179.6,179.46,1.5546]
[1730229789433,2.7854,179.5,179.46,2.7859]
[1730229789637,34.80777015,179.56,179.42,1.6384]
[1730229789834,34.80777015,179.53,179.42,1.6384]
[1730229790036,2.786,179.46,179.43,8.4]
[1730229790237,1.594,179.52,179.38,61.7487]
[1730229790431,34.80777015,179.5,179.39,8.06]
[1730229790636,34.80777015,179.5,179.4,2.7868]
[1730229790838,34.80777015,179.5,179.39,8.06]
[1730229791036,2.7867,179.42,179.39,8.06]
[1730229791230,34.80777015,179.5,179.39,8.06]
[1730229791436,34.80777015,179.47,179.35,3.1611]
[1730229791744,51.46777015,179.5,179.34,8.06]
[1730229791932,34.80777015,179.5,179.34,8.06]
[1730229792136,51.46777015,179.5,179.35,8.06]
[1730229792339,34.80777015,179.45,179.35,8.06]
[1730229792639,34.80777015,179.45,179.35,10.8476]
[1730229792847,34.80777015,179.42,179.29,95.02777015]
[1730229793038,34.80777015,179.42,179.3,8.06]
[1730229793939,2.7875,179.37,179.32,2.7881]
[1730229794245,34.80777015,179.39,179.29,60.22]
[1730229794439,34.80777015,179.43,179.27,8.06]
[1730229794440,34.80777015,179.37,179.27,8.06]
[1730229794843,2.788,179.33,179.29,2.7886]
[1730229795140,1.5504,179.4,179.18,42.86777015]
[1730229795141,34.80777015,179.34,179.18,42.86777015]
[1730229795543,34.80777015,179.34,179.23,2.7895]
[1730229795734,34.80777015,179.34,179.18,42.86777015]
[1730229796333,34.80777015,179.34,179.23,2.7894]
[1730229796736,2.7885,179.3,179.24,2.7894]
[1730229797040,34.80777015,179.37,179.24,34.80777015]
[1730229797241,34.80777015,179.37,179.25,8.06]
[1730229797450,8.06,179.39,179.25,8.06]
[1730229797643,36.35817015,179.4,179.25,8.06]
[1730229797644,36.35817015,179.4,179.27,34.80777015]
[1730229797950,2.7872,179.38,179.27,34.80777015]
[1730229798241,36.35817015,179.4,179.27,34.80777015]
[1730229798443,36.35817015,179.4,179.3,2.7884]
[1730229798444,2.7875,179.36,179.3,2.7884]
[1730229798637,36.35817015,179.4,179.25,8.06]
[1730229799038,2.7879,179.34,179.27,2.7889]
[1730229799238,2.7879,179.34,179.25,8.06]
[1730229799639,2.788,179.33,179.27,2.7889]
[1730229799836,34.80777015,179.37,179.25,8.06]
[1730229801337,1.5504,179.4,179.3,34.80777015]
[1730229801540,3.1022,179.41,179.3,34.80777015]
[1730229801740,1.6012,179.41,179.33,34.80777015]
[1730229801951,2.7863,179.44,179.38,2.787]
[1730229802240,1.6084,179.46,179.36,34.80777015]
[1730229802647,1.6281,179.48,179.36,34.80777015]
[1730229802843,1.6281,179.48,179.43,2.7863]
[1730229803347,2.7857,179.48,179.43,2.7863]
[1730229803544,1.6539,179.49,179.4,8.06]
[1730229803946,2.786,179.46,179.42,2.7866]
[1730229804147,1.6539,179.49,179.42,2.7866]
[1730229804448,2.7859,179.47,179.42,2.7866]
[1730229804647,36.46167015,179.49,179.4,10.8467]
[1730229805144,2.7863,179.44,179.4,10.8467]
[1730229805358,2.7863,179.44,179.37,3.165]
[1730229805359,34.80777015,179.47,179.37,2.7873]
[1730229805543,2.7865,179.43,179.35,8.06]
[1730229805940,36.46167015,179.49,179.35,42.86777015]
[1730229806650,36.46167015,179.49,179.4,2.7867]
[1730229806948,36.46167015,179.49,179.35,42.86777015]
[1730229807354,2.7862,179.45,179.4,2.7867]
[1730229807652,36.46167015,179.49,179.35,42.86777015]
[1730229807850,34.80777015,179.44,179.28,34.80777015]
[1730229808065,3.2334,179.43,179.33,2.7879]
[1730229808356,34.80777015,179.38,179.27,3.1473]
[1730229808745,2.7878,179.35,179.31,2.7882]
[1730229808950,8.06,179.42,179.28,34.80777015]
[1730229809155,3.2334,179.43,179.28,34.80777015]
[1730229809455,3.2334,179.43,179.33,2.7879]
[1730229809654,34.80777015,179.41,179.27,3.1473]
[1730229809956,34.80777015,179.38,179.26,8.06]
[1730229810151,34.80777015,179.35,179.23,8.06]
[1730229810351,2.788,179.33,179.29,2.7886]
[1730229810650,2.788,179.33,179.23,8.06]
[1730229811055,1.5606,179.37,179.23,8.06]
[1730229811651,2.7886,179.29,179.25,2.7892]
[1730229811847,34.80777015,179.35,179.23,8.06]
[1730229812953,34.80777015,179.32,179.19,4.6151]
[1730229813352,1.6515,179.31,179.19,4.6151]
[1730229813960,1.6515,179.31,179.23,2.7895]
[1730229814458,2.7889,179.28,179.23,2.7895]
[1730229814849,1.6515,179.31,179.19,39.42287015]
[1730229815051,2.789,179.27,179.22,2.7896]
[1730229815563,1.6515,179.31,179.21,2.7898]
[1730229815956,1.6515,179.31,179.19,4.6151]
[1730229816156,34.80777015,179.29,179.13,34.80777015]
[1730229816350,34.80777015,179.29,179.14,8.06]
[1730229816857,34.80777015,179.29,179.18,2.7902]
[1730229817254,1.5843,179.3,179.16,34.80777015]
[1730229817656,1.5843,179.3,179.19,34.80777015]
[1730229817855,1.6515,179.31,179.19,34.80777015]
[1730229818251,2.7884,179.3,179.23,2.7895]
[1730229818458,1.6515,179.31,179.23,2.7895]
[1730229819057,2.7892,179.26,179.21,2.7897]
[1730229819759,2.7892,179.25,179.2,2.7899]
[1730229820351,2.7896,179.23,179.18,2.7903]
[1730229820559,34.80777015,179.29,179.15,42.86777015]
[1730229820754,1.6515,179.31,179.15,42.86777015]
[1730229821368,1.6515,179.31,179.19,34.80777015]
[1730229821557,2.7885,179.3,179.19,34.80777015]
[1730229821755,1.6515,179.31,179.19,34.80777015]
[1730229822661,2.789,179.27,179.22,2.7895]
[1730229823762,2.7887,179.29,179.23,2.7894]
[1730229823961,2.7887,179.29,179.19,34.80777015]
[1730229823962,2.7887,179.29,179.2,9.4304]
[1730229824359,18.3115,179.31,179.15,34.80777015]
[1730229824567,21.44457069,179.25,179.11,23.05047069]
[1730229824863,21.44457069,179.22,179.09,68.08]
[1730229825071,2.7906,179.17,179.12,2.7912]
[1730229825260,1.5077,179.21,179.09,68.08]
[1730229825664,2.7907,179.16,179.09,68.08]
[1730229825866,1.5077,179.21,179.09,68.08]
[1730229826167,2.7907,179.16,179.07,7.84]
[1730229826473,1.5077,179.21,179.06,34.87252427]
[1730229826474,36.38022427,179.21,179.06,34.87252427]
[1730229826657,2.7915,179.11,179.0,60.28]
[1730229826858,34.87252427,179.15,179.02,7.84]
[1730229827063,34.87252427,179.19,179.08,2.7917]
[1730229827367,34.87252427,179.19,179.02,42.71252427]
[1730229827368,2.7909,179.15,179.05,34.87252427]
[1730229827673,2.7911,179.13,179.05,34.87252427]
[1730229828166,51.53252427,179.2,179.05,34.87252427]
[1730229828371,9.3477,179.21,179.05,34.87252427]
[1730229828372,34.87252427,179.17,179.05,34.87252427]
[1730229828774,2.7908,179.16,179.08,34.87252427]
[1730229829073,7.84,179.19,179.08,34.87252427]
[1730229829972,2.7906,179.16,179.08,34.87252427]
[1730229830272,34.87252427,179.2,179.08,34.87252427]
[1730229830472,1.5077,179.21,179.08,34.87252427]
[1730229830473,2.7903,179.18,179.13,2.791]
[1730229830667,1.5077,179.21,179.12,7.84]
[1730229830869,1.5077,179.21,179.14,34.87252427]
[1730229831167,1.5077,179.21,179.17,2.7904]
[1730229831564,1.5077,179.21,179.18,2.7903]
[1730229831966,3.2335,179.24,179.14,34.87252427]
[1730229832163,3.2335,179.24,179.2,2.79]
[1730229832560,3.2335,179.24,179.19,2.7901]
[1730229833868,1.5942,179.24,179.21,2.7898]
[1730229834073,1.5942,179.24,179.14,7.84]
[1730229834074,1.5942,179.24,179.14,42.71252427]
[1730229834277,2.7899,179.21,179.14,7.84]
[1730229834465,2.7899,179.21,179.16,2.7905]
[1730229835469,1.5942,179.24,179.16,2.7905]
[1730229836173,1.5942,179.24,179.12,7.84]
[1730229836372,1.5942,179.24,179.14,2.7909]
[1730229836978,2.7901,179.2,179.13,7.5]
[1730229837163,1.5942,179.24,179.13,7.5]
[1730229837871,23.08002605,179.46,179.17,34.87252427]
[1730229838176,1.513,179.37,179.24,34.87252427]
[1730229838370,1.513,179.37,179.25,7.5]
[1730229838676,1.513,179.37,179.26,34.87252427]
[1730229838968,1.513,179.37,179.29,34.87252427]
[1730229839174,1.513,179.37,179.26,34.87252427]
[1730229839963,1.513,179.37,179.29,34.87252427]
[1730229840272,7.5,179.44,179.32,34.87252427]
[1730229840476,1.5234,179.42,179.33,7.5]
[1730229841171,1.5234,179.42,179.35,2.7875]
[1730229841570,1.5234,179.42,179.33,7.5]
[1730229842173,42.35252427,179.5,179.35,34.87252427]
[1730229842373,1.6073,179.47,179.38,34.87252427]
[1730229842680,1.6073,179.47,179.39,7.48]
[1730229842870,1.5651,179.49,179.39,7.48]
[1730229843371,1.5651,179.49,179.41,34.87252427]
[1730229843573,1.6057,179.51,179.41,34.87252427]
[1730229843773,1.6073,179.52,179.41,34.87252427]
[1730229844275,2.7855,179.49,179.44,2.7862]
[1730229844475,1.6073,179.52,179.41,34.87252427]
[1730229845280,1.6073,179.52,179.4,1.5781]
[1730229846078,2.7861,179.46,179.4,1.5781]
[1730229846375,1.6073,179.52,179.41,34.87252427]
[1730229846576,1.5651,179.55,179.47,34.87252427]
[1730229846774,34.87252427,179.61,179.48,7.48]
[1730229846975,1.6413,179.6,179.48,7.48]
[1730229847575,1.6413,179.6,179.47,42.35252427]
[1730229847966,2.7848,179.54,179.47,45.13822427]
[1730229848170,1.6413,179.6,179.47,42.35252427]
[1730229848570,2.7846,179.55,179.49,2.7855]
[1730229849172,2.7846,179.55,179.5,2.7853]
[1730229849371,2.7846,179.55,179.47,42.35252427]
[1730229849575,2.7844,179.57,179.5,34.87252427]
[1730229849884,1.6413,179.6,179.5,34.87252427]
[1730229850068,2.7848,179.54,179.47,42.35252427]
[1730229850267,1.6413,179.6,179.48,7.48]
[1730229851582,1.7131,179.62,179.5,34.87252427]
[1730229851979,1.7131,179.62,179.48,7.48]
[1730229852281,34.87252427,179.7,179.56,34.87252427]
[1730229852471,34.87252427,179.7,179.56,42.35252427]
[1730229852472,3.4007,179.69,179.56,42.35252427]
[1730229852675,3.4007,179.69,179.58,21.38924457]
[1730229852878,2.7831,179.65,179.58,21.38924457]
[1730229853077,3.4007,179.69,179.58,24.17324457]
[1730229853379,3.4007,179.69,179.57,1.6068]
[1730229853380,2.7835,179.62,179.57,1.6068]
[1730229853575,24.78994457,179.69,179.57,9.0868]
[1730229853976,2.7831,179.65,179.59,21.38924457]
[1730229854181,3.4007,179.69,179.59,21.38924457]
[1730229854570,2.7834,179.63,179.57,11.8709]
[1730229854771,3.4007,179.69,179.57,9.0868]
[1730229855476,3.4007,179.69,179.56,28.86924457]
[1730229855477,41.44994457,179.69,179.56,28.86924457]
[1730229855677,2.783,179.66,179.56,28.86924457]
[1730229855987,41.44994457,179.69,179.56,28.86924457]
[1730229856482,2.7838,179.61,179.56,7.48]
[1730229856875,24.78994457,179.69,179.56,7.48]
[1730229857075,24.78994457,179.69,179.57,1.7022]
[1730229857875,21.38924457,179.66,179.56,7.48]
[1730229858085,2.7842,179.57,179.56,7.48]
[1730229858286,21.38924457,179.66,179.56,7.48]
[1730229858878,24.78994457,179.69,179.56,7.48]
[1730229859076,3.4007,179.69,179.58,21.38924457]
[1730229859290,2.7833,179.64,179.58,21.38924457]
[1730229859691,2.7833,179.64,179.59,2.7839]
[1730229859891,21.38924457,179.71,179.58,21.38924457]
[1730229860378,8.3424,179.8,179.57,3.2825]
[1730229860379,2.75668896,179.82,179.64,21.38924457]
[1730229860585,21.38924457,179.77,179.65,7.48]
[1730229861588,2.7825,179.69,179.65,7.48]
[1730229861785,21.38924457,179.77,179.65,7.48]
[1730229861987,2.7824,179.7,179.66,2.7828]
[1730229862182,21.38924457,179.77,179.65,7.48]
[1730229862590,21.38924457,179.77,179.59,60.2]
[1730229862591,21.38924457,179.77,179.61,21.38924457]
[1730229862792,21.38924457,179.77,179.63,21.38924457]
[1730229863384,21.38924457,179.77,179.62,7.48]
[1730229863588,2.7818,179.73,179.63,2.7832]
[1730229863780,21.38924457,179.77,179.62,7.48]
[1730229864196,2.7823,179.7,179.63,7.48]
[1730229864396,21.38924457,179.74,179.63,7.48]
[1730229865290,2.783,179.66,179.63,7.48]
[1730229865495,21.38924457,179.74,179.63,7.48]
[1730229866588,2.7832,179.64,179.63,7.48]
[1730229866896,21.38924457,179.71,179.61,7.42]
[1730229867094,1.7113,179.7,179.61,7.42]
[1730229867302,2.7835,179.62,179.61,7.42]
[1730229868187,2.7838,179.61,179.6,7.42]
[1730229870196,2.7841,179.58,179.54,2.7846]
[1730229870397,21.38924457,179.65,179.54,2.7846]
[1730229870703,2.7835,179.62,179.55,7.42]
[1730229870906,21.38924457,179.65,179.51,21.38924457]
[1730229871199,21.38924457,179.65,179.53,7.42]
[1730229871399,2.7845,179.56,179.53,7.42]
[1730229871598,21.38924457,179.62,179.53,7.42]
[1730229871904,8.9985,179.68,179.47,10.7556]
[1730229871905,21.38924457,179.57,179.47,10.7556]
[1730229872397,7.42,179.62,179.47,10.7556]
[1730229872593,5.5668,179.63,179.47,10.7556]
[1730229872594,21.38924457,179.61,179.47,10.7556]
[1730229872795,2.7847,179.55,179.51,2.7851]
[1730229873198,21.38924457,179.61,179.47,10.7556]
[1730229873396,21.38924457,179.58,179.47,10.7556]
[1730229874101,2.7852,179.51,179.48,2.7855]
[1730229874698,2.7855,179.49,179.45,2.786]
[1730229875004,21.38924457,179.55,179.47,7.42]
[1730229875402,2.7855,179.49,179.47,7.42]
[1730229875800,21.38924457,179.55,179.47,7.42]
[1730229876000,2.7855,179.5,179.47,7.42]
[1730229876505,21.38924457,179.55,179.47,7.42]
[1730229876902,2.7856,179.49,179.47,7.42]
[1730229877101,21.38924457,179.55,179.43,1.2204]
[1730229877405,21.38924457,179.55,179.45,7.42]
[1730229878106,21.38924457,179.55,179.43,1.2204]
[1730229878307,2.7857,179.48,179.45,2.7861]
[1730229879704,2.7849,179.53,179.5,2.7853]
[1730229879902,1.7691,179.57,179.44,28.80924457]
[1730229880106,1.6551,179.6,179.46,21.38924457]
[1730229880603,1.6551,179.6,179.49,21.38924457]
[1730229880801,2.7843,179.57,179.53,2.7849]
[1730229881309,1.8073,179.62,179.5,7.42]